Workbook

Sheet Dashboard (hidden)
B5: Regimen Laboral MYPE | H5: BI
B6: Calculadora | F6: Total cotizado | G6: 34500 | H6: =G6/1.18 -> 29237.28814
B7: Sueldo | C7: 1500 | D7: =C7 -> 1500
B8: Gratificaciones: | C8: 0.1667 | D8: 0 | F8: Personal: | G8: Cantidad: | H8: Costo Real Mensual: | I8: Costo Bruto | J8: Total Costo Real Mensual: | K8: Total Costo Bruto
B9: CTS: | C9: 0.0833 | D9: 0 | F9: Administrador | G9: 1 | H9: 1569.975 | I9: 1500 | J9: =G9*H9 -> 1569.975 | K9: =G9*I9 -> 1500
B10: Vacaciones: | C10: =8.33%/2 -> 0.04165 | D10: =$C$7*C10 -> 62.475 | F10: Personal de Vigilancia | G10: 6 | H10: 1569.975 | I10: 1500 | J10: =G10*H10 -> 9419.85 | K10: =G10*I10 -> 9000
B11: EsSalud/SIS: | C11: 0.09 | D11: 15 | F11: Personal de Vigilancia de Descanso | G11: 2 | H11: 1569.975 | I11: 1500 | J11: 3139.95 | K11: 3000
C12: Costo Real | D12: =SUM(D7:D11) -> 1577.475 | F12: Supervisor | G12: 2 | H12: 1569.975 | I12: 1500 | J12: 3139.95 | K12: 3000
F13: Personal de Limpieza | G13: 5 | H13: 1569.975 | I13: 1500 | J13: 7849.875 | K13: 7500
B14: AFP | F14: Personal de Jardinería | G14: 1 | H14: 1569.975 | I14: 1500 | J14: 1569.975 | K14: 1500
B15: Aporte Obligatorio: | C15: 0.1 | D15: =$C$7*C15 -> 150 | I15: Costo Mensual | J15: =SUM(J9:J14) -> 26689.575 | K15: =SUM(K9:K14) -> 25500
A16: Comisiones | B16: Integra | C16: =INDEX(AFP[],MATCH(B16,AFP[AFP],0),4) -> 0.0233 | D16: =$C$7*C16 -> 34.95
C17: Descuento mensual | D17: =SUM(D15:D16) -> 184.95 | I17: Utilidad Bruta: | J17: =$G$6-J15 -> 7810.425 | K17: =$G$6-K15 -> 9000
F18: Impuestos de Cotización | I18: Utilidad Neta: | J18: =J17-$G$21 -> 2109.153814 | K18: =K17-$G$21 -> 3298.728814
C19: Sueldo neto Mensual | D19: =C7-D17 -> 1315.05 | F19: IGV | G19: =H6*18% -> 5262.711864
C20: Sueldo Quincenal | D20: =D19/2 -> 657.525 | F20: Renta | G20: =H6*1.5% -> 438.559322
F21: Total impuesto por factura | G21: =SUM(G19:G20) -> 5701.271186
A22: AFP | B22: Comisión Anual sobre Saldo | C22: Comisión sobre Flujo | D22: Total comicion
A23: Habitat | B23: 0.0125 | C23: 0.0147 | D23: =SUM(AFP[[#This Row],[Comisión Anual sobre Saldo]:[Comisión sobre Flujo]]) -> 0.0272
A24: Integra | B24: 0.0078 | C24: 0.0155 | D24: =SUM(AFP[[#This Row],[Comisión Anual sobre Saldo]:[Comisión sobre Flujo]]) -> 0.0233
A25: Prima | B25: 0.0125 | C25: 0.016 | D25: =SUM(AFP[[#This Row],[Comisión Anual sobre Saldo]:[Comisión sobre Flujo]]) -> 0.0285
A26: Profuturo | B26: 0.012 | C26: 0.0169 | D26: =SUM(AFP[[#This Row],[Comisión Anual sobre Saldo]:[Comisión sobre Flujo]]) -> 0.0289

Sheet MSHEETS

Sheet FORMULARIOS (hidden)
A1: - | B1: - | C1: - | D1: COLUMNA | U1: encabesado | V1: columna | X1: encabesado | Y1: columna | AM1: DETALLE | AN1: CONTROL | AO1: COLUMNA
A2: ID | B2: TextBox27 | C2: 1 | D2: A | F2: ID Interacción | G2: TextBox27 | H2: A | J2: Departamento | K2: A | M2: ID_Cotización | N2: TextBox34 | U2: ID_Cotización | V2: A | X2: ID_Detalle | Y2: A | AH2: ID_Cotización | AI2: A | AJ2: ID_Cliente | AK2: A | AM2: ID_Artículo | AN2: TextBox4 | AO2: A
A3: Tipo de Doc | B3: ComboBox2 | D3: B | F3: ID Cliente | G3: TextBox28 | H3: B | J3: Provincia | K3: B | M3: Fecha_Cotización | U3: Fecha_Cotización | V3: B | X3: ID_Cotización | Y3: B | AA3: ENCABESADO | AB3: COLUMNA | AH3: Fecha_Cotización | AI3: B | AJ3: Tipo de Doc | AK3: B | AM3: Cod_Interno | AN3: TextBox1 | AO3: B
A4: N° de Doc | B4: TextBox12 | D4: C | E4: TextBox14 | F4: Fecha de la acción | G4: TextBox29 | H4: C | J4: Distrito | K4: C | M4: ID_Cliente | N4: TextBox35 | U4: ID_Cliente | V4: C | X4: ID_Artículo | Y4: C | AA4: Ítem | AB4: C | AH4: ID_Cliente | AI4: C | AJ4: N° de Doc | AK4: C | AM4: Descripcion | AN4: TextBox3 | AO4: C
A5: Razón Social | B5: TextBox1 | C5: 1 | D5: D | E5: TextBox13 | F5: Tipo de acción | G5: ComboBox2 | H5: D | M5: N° de Doc | N5: TextBox14 | R5: ID_Artículo | S5: A | U5: Moneda | V5: D | X5: Detalle_Producto | Y5: D | AA5: Código | AB5: D | AH5: Estado_Cotización | AI5: I | AJ5: Razón Social | AK5: D | AM5: Tipo | AN5: ComboBox5 | AO5: D
A6: Nombre Comercial | B6: TextBox2 | C6: 1 | D6: E | F6: Motivo de la acción | G6: ComboBox3 | H6: E | M6: Razón Social | N6: TextBox13 | R6: Cod_Interno | S6: B | U6: IGV_Aplica | V6: E | X6: Cantidad | Y6: E | AA6: Descripción | AB6: E | AH6: Total | AI6: J | AJ6: Nombre Comercial | AK6: E | AM6: Marca | AN6: ComboBox6 | AO6: E
A7: Dirección | B7: TextBox14 | D7: F | E7: TextBox16 | F7: Producto o servicio | G7: TextBox22 | H7: F | M7: Dirección | N7: TextBox16 | R7: Descripcion | S7: C | U7: Forma_Pago | V7: F | X7: Precio Unitario | Y7: F | AA7: UM | AB7: F | AJ7: Dirección | AK7: F | AM7: Unidad de medida | AN7: ComboBox4 | AO7: F
A8: Coordenadas | B8: TextBox13 | D8: G | F8: Descripción breve | G8: TextBox17 | H8: G | M8: Nombre | N8: TextBox15 | O8: K | R8: Tipo | S8: D | U8: Garantía | V8: G | X8: Total parcial | Y8: G | AA8: Cantidad | AB8: G | AJ8: Coordenadas | AK8: G | AM8: Precio_Sugerido | AN8: TextBox33 | AO8: G
A9: Departamento | B9: TextBox15 | C9: 1 | D9: H | F9: Responsable | G9: ComboBox4 | H9: H | M9: Número | N9: TextBox18 | O9: N | R9: Marca | S9: E | U9: Entrega | V9: H | AA9: Precio Unitario | AB9: H | AJ9: Departamento | AK9: H
A10: Provincia | B10: TextBox17 | D10: I | F10: Resultado | G10: ComboBox5 | H10: I | R10: Unidad de medida | S10: F | U10: Estado_Cotización | V10: I | AA10: Total | AB10: I | AJ10: Provincia | AK10: I
A11: Distrito | B11: TextBox18 | D11: J | R11: Precio_Sugerido | S11: G | AJ11: Distrito | AK11: J
A12: Nombre | B12: TextBox22 | C12: 1 | D12: K | E12: TextBox15 | AJ12: Nombre | AK12: K
A13: Cargo | B13: TextBox21 | C13: 1 | D13: L | M13: Moneda | N13: ComboBox3 | AJ13: Cargo | AK13: L
A14: Codigo | B14: TextBox24 | D14: M | M14: IGV_Aplica | N14: ComboBox7 | AJ14: Codigo | AK14: M
A15: Número | B15: TextBox25 | D15: N | E15: TextBox18 | M15: Forma_Pago | N15: ComboBox5 | AJ15: Número | AK15: N
A16: Fijo | B16: TextBox28 | D16: O | M16: Garantía | N16: ComboBox4 | AJ16: Fijo | AK16: O
A17: Correo | B17: TextBox6 | D17: P | M17: Entrega | N17: ComboBox6 | AJ17: Correo | AK17: P
A18: OBS | B18: TextBox29 | D18: Q | M18: Estado_Cotización | AJ18: OBS | AK18: Q
A19: Tipo de Cliente | B19: ComboBox3 | D19: R | AJ19: Tipo de Cliente | AK19: R
A20: Rubro | B20: ComboBox4 | D20: S | AJ20: Rubro | AK20: S
A21: Tamaño | B21: ComboBox5 | D21: T | AJ21: Tamaño | AK21: T
A22: Estado | B22: ComboBox6 | C22: 1 | D22: U | AJ22: Estado | AK22: U
A23: Web | B23: TextBox7 | D23: V | AJ23: Web | AK23: V
A24: Facebook | B24: TextBox8 | D24: W | AJ24: Facebook | AK24: W
A25: WhatsApp | B25: TextBox10 | D25: X | AJ25: WhatsApp | AK25: X
A26: Instagram | B26: TextBox11 | D26: Y | AJ26: Instagram | AK26: Y
A27: TikTok | B27: TextBox20 | D27: Z | AJ27: TikTok | AK27: Z
A28: LinkedIn | B28: TextBox9 | D28: AA | AJ28: LinkedIn | AK28: AA

Sheet COTIZACION (hidden)
D3: Razón Social: | E3: =RazonSocial -> PATRULLA 105 SEGURITY S.A.C. | H3: Cotización
D4: Ruc: | E4: =Ruc -> 20613967762 | H4: Fecha: | I4: =IFERROR(IF(I5="","",INDEX(tbl_Cotizaciones[],MATCH(I5,tbl_Cotizaciones[ID_Cotización],0),2)),"") -> 45744
D5: Dirección: | E5: =DiereccionFiscal -> URB. LAS PALMAS PACHACAMAC | H5: N° cotización: | I5: 581
H7: Cotización válida hasta:
C8: Cliente: | D8: - | I8: =IFERROR(I4+7,"") -> 45751
C9: DNI / Ruc: | D9: 10000000009
C10: Dirección: | D10: -
C11: Atención: | D11: Jacqueline Manrique
C12: Teléfono: | D12: 955319977
C14: Ítem | D14: Código | E14: Descripción | F14: UM | G14: Cantidad | H14: Precio Unitario | I14: Total
C15: 1 | D15: ADMIN | E15: Administrador | F15: SRV | G15: 1 | H15: 3750 | I15: 3750
C16: 2 | D16: SGR | E16: Personal de Vigilancia | F16: SRV | G16: 6 | H16: 1890 | I16: 11340
C17: 3 | D17: SGRDSC | E17: Personal de Vigilancia de Descanso | F17: SRV | G17: 2 | H17: 1890 | I17: 3780
C18: 4 | D18: SPRV | E18: Supervisor | F18: SRV | G18: 2 | H18: 2100 | I18: 4200
C19: 5 | D19: PLPZ | E19: Personal de Limpieza | F19: SRV | G19: 5 | H19: 1610 | I19: 8050
C20: 6 | D20: PJRD | E20: Personal de Jardinería | F20: SRV | G20: 1 | H20: 2100 | I20: 2100
C21: 7 | D21: MKT | E21: Servicio de Marketing y Publicidad INCLUYE: - Campañas publicitarias para Captar nuevos Arrendatarios/Propietarios | F21: SRV | G21: 1 | H21: 0.0847 | I21: 0.0847
H28: Sub total: | I28: =SUM(I15:I27) -> 33220.0847
D29: Moneda: | E29: Soles (PEN) | H29: IGV 18%: | I29: 5979.62
D30: Garantia: | E30: - | H30: TOTAL: | I30: =SUM(I28:I29) -> 39199.7047
D31: Forma de Pago: | E31: Contado
D32: Entrega: | E32: Entrega inmediata

Sheet REGISTRO COTIZACIONES (hidden)
A2: ID_Cotización | B2: Fecha_Cotización | C2: ID_Cliente | D2: Moneda | E2: IGV_Aplica | F2: Forma_Pago | G2: Garantía | H2: Entrega | I2: Estado_Cotización | J2: Total
A3: 577 | B3: 45736 | C3: 75 | D3: Soles (PEN) | E3: SI | F3: Contado | G3: - | H3: Entrega inmediata | I3: Pendiente | J3: =IF(tbl_Cotizaciones[[#This Row],[IGV_Aplica]]="SI",SUMIFS(tbl_DetalleCotización[Total parcial],tbl_DetalleCotización[ID_Cotización],tbl_Cotizaciones[[#This Row],[ID_Cotización]])*1.18,SUMIFS(tbl_DetalleCotización[Total parcial],tbl_DetalleCotización[ID_Cotización],tbl_Cotizaciones[[#This Row],[ID_Cotización]])) -> 249.999992
A4: 578 | B4: 45740 | C4: 2 | D4: Soles (PEN) | E4: NO | F4: Contado | G4: - | H4: Entrega inmediata | I4: Pendiente | J4: =IF(tbl_Cotizaciones[[#This Row],[IGV_Aplica]]="SI",SUMIFS(tbl_DetalleCotización[Total parcial],tbl_DetalleCotización[ID_Cotización],tbl_Cotizaciones[[#This Row],[ID_Cotización]])*1.18,SUMIFS(tbl_DetalleCotización[Total parcial],tbl_DetalleCotización[ID_Cotización],tbl_Cotizaciones[[#This Row],[ID_Cotización]])) -> 10800
A5: 579 | B5: 45744 | C5: 13 | D5: Soles (PEN) | E5: NO | F5: Contado | G5: - | H5: Entrega inmediata | I5: Pendiente | J5: =IF(tbl_Cotizaciones[[#This Row],[IGV_Aplica]]="SI",SUMIFS(tbl_DetalleCotización[Total parcial],tbl_DetalleCotización[ID_Cotización],tbl_Cotizaciones[[#This Row],[ID_Cotización]])*1.18,SUMIFS(tbl_DetalleCotización[Total parcial],tbl_DetalleCotización[ID_Cotización],tbl_Cotizaciones[[#This Row],[ID_Cotización]])) -> 33220
A6: 580 | B6: 45744 | C6: 13 | D6: Soles (PEN) | E6: SI | F6: Contado | G6: - | H6: Entrega inmediata | I6: Pendiente | J6: =IF(tbl_Cotizaciones[[#This Row],[IGV_Aplica]]="SI",SUMIFS(tbl_DetalleCotización[Total parcial],tbl_DetalleCotización[ID_Cotización],tbl_Cotizaciones[[#This Row],[ID_Cotización]])*1.18,SUMIFS(tbl_DetalleCotización[Total parcial],tbl_DetalleCotización[ID_Cotización],tbl_Cotizaciones[[#This Row],[ID_Cotización]])) -> 39199.6
A7: 581 | B7: 45744 | C7: 13 | D7: Soles (PEN) | E7: SI | F7: Contado | G7: - | H7: Entrega inmediata | I7: Pendiente | J7: =IF(tbl_Cotizaciones[[#This Row],[IGV_Aplica]]="SI",SUMIFS(tbl_DetalleCotización[Total parcial],tbl_DetalleCotización[ID_Cotización],tbl_Cotizaciones[[#This Row],[ID_Cotización]])*1.18,SUMIFS(tbl_DetalleCotización[Total parcial],tbl_DetalleCotización[ID_Cotización],tbl_Cotizaciones[[#This Row],[ID_Cotización]])) -> 39199.69995

Sheet DETALLE COTIZACIONES (hidden)
A2: ID_Detalle | B2: ID_Cotización | C2: ID_Artículo | D2: Detalle_Producto | E2: Cantidad | F2: Precio Unitario | G2: Total parcial
A3: 13 | B3: 577 | C3: 1 | D3: Marketing Digital (paquete Despegue) | E3: 1 | F3: 211.8644 | G3: 211.8644
A4: 14 | B4: 578 | C4: 1 | D4: Administrador | E4: 1 | F4: 2400 | G4: 2400
A5: 15 | B5: 578 | C5: 2 | D5: Conserje Diurno | E5: 1 | F5: 2100 | G5: 2100
A6: 16 | B6: 578 | C6: 3 | D6: Conserje Nocturno | E6: 1 | F6: 2100 | G6: 2100
A7: 17 | B7: 578 | C7: 4 | D7: Conserje de Descanso | E7: 1 | F7: 1100 | G7: 1100
A8: 18 | B8: 578 | C8: 5 | D8: Personal de Limpieza | E8: 1 | F8: 1500 | G8: 1500
A9: 19 | B9: 578 | C9: 6 | D9: Personal de Limpieza de Descanso | E9: 1 | F9: 600 | G9: 600
A10: 20 | B10: 578 | C10: 7 | D10: Personal de Jardinería | E10: 1 | F10: 300 | G10: 300
A11: 21 | B11: 578 | C11: 8 | D11: Gastos Contables | E11: 1 | F11: 700 | G11: 700
A12: 22 | B12: 579 | C12: 1 | D12: Administrador | E12: 1 | F12: 3750 | G12: 3750
A13: 23 | B13: 579 | C13: 9 | D13: Personal de Vigilancia | E13: 6 | F13: 1890 | G13: 11340
A14: 24 | B14: 579 | C14: 10 | D14: Personal de Vigilancia de Descanso | E14: 2 | F14: 1890 | G14: 3780
A15: 25 | B15: 579 | C15: 11 | D15: Supervisor | E15: 2 | F15: 2100 | G15: 4200
A16: 26 | B16: 579 | C16: 5 | D16: Personal de Limpieza | E16: 5 | F16: 1610 | G16: 8050
A17: 27 | B17: 579 | C17: 7 | D17: Personal de Jardinería | E17: 1 | F17: 2100 | G17: 2100
A18: 28 | B18: 580 | C18: 1 | D18: Administrador | E18: 1 | F18: 3750 | G18: 3750
A19: 29 | B19: 580 | C19: 9 | D19: Personal de Vigilancia | E19: 6 | F19: 1890 | G19: 11340
A20: 30 | B20: 580 | C20: 10 | D20: Personal de Vigilancia de Descanso | E20: 2 | F20: 1890 | G20: 3780
A21: 31 | B21: 580 | C21: 11 | D21: Supervisor | E21: 2 | F21: 2100 | G21: 4200
A22: 32 | B22: 580 | C22: 5 | D22: Personal de Limpieza | E22: 5 | F22: 1610 | G22: 8050
A23: 33 | B23: 580 | C23: 7 | D23: Personal de Jardinería | E23: 1 | F23: 2100 | G23: 2100
A24: 34 | B24: 581 | C24: 1 | D24: Administrador | E24: 1 | F24: 3750 | G24: 3750
A25: 35 | B25: 581 | C25: 9 | D25: Personal de Vigilancia | E25: 6 | F25: 1890 | G25: 11340
A26: 36 | B26: 581 | C26: 10 | D26: Personal de Vigilancia de Descanso | E26: 2 | F26: 1890 | G26: 3780
A27: 37 | B27: 581 | C27: 11 | D27: Supervisor | E27: 2 | F27: 2100 | G27: 4200
A28: 38 | B28: 581 | C28: 5 | D28: Personal de Limpieza | E28: 5 | F28: 1610 | G28: 8050
A29: 39 | B29: 581 | C29: 7 | D29: Personal de Jardinería | E29: 1 | F29: 2100 | G29: 2100
A30: 40 | B30: 581 | C30: 12 | D30: Servicio de Marketing y Publicidad INCLUYE: - Campañas publicitarias para Captar nuevos Arrendatarios/Propietarios | E30: 1 | F30: 0.0847 | G30: 0.0847

Sheet PRODUCTOS (hidden)
A2: ID_Artículo | B2: Cod_Interno | C2: Descripcion | D2: Tipo | E2: Marca | F2: Unidad de medida | G2: Precio_Sugerido
A3: 1 | B3: ADMIN | C3: Administrador | D3: Servico | E3: - | F3: SRV | G3: 2832
A4: 2 | B4: CNSJD | C4: Conserje Diurno | D4: Servico | E4: - | F4: SRV | G4: 2478
A5: 3 | B5: CNSJN | C5: Conserje Nocturno | D5: Servico | E5: - | F5: SRV | G5: 2478
A6: 4 | B6: CNSJDSC | C6: Conserje de Descanso | D6: Servico | E6: - | F6: SRV | G6: 1298
A7: 5 | B7: PLPZ | C7: Personal de Limpieza | D7: Servico | E7: - | F7: SRV | G7: 1770
A8: 6 | B8: PLPZDSC | C8: Personal de Limpieza de Descanso | D8: Servico | E8: - | F8: SRV | G8: 708
A9: 7 | B9: PJRD | C9: Personal de Jardinería | D9: Servico | E9: - | F9: SRV | G9: 354
A10: 8 | B10: GCTB | C10: Gastos Contables | D10: Servico | E10: - | F10: SRV | G10: 826
A11: 9 | B11: SGR | C11: Personal de Vigilancia | D11: Servico | E11: - | F11: SRV | G11: 1770
A12: 10 | B12: SGRDSC | C12: Personal de Vigilancia de Descanso | D12: Servico | E12: - | F12: SRV | G12: 1770
A13: 11 | B13: SPRV | C13: Supervisor | D13: Servico | E13: - | F13: SRV | G13: 1800
A14: 12 | B14: MKT | C14: Servicio de Marketing y Publicidad | D14: Servico | E14: - | F14: SRV | G14: 1500

Sheet CLIENTES (hidden)
A2: ID | B2: Tipo de Doc | C2: N° de Doc | D2: Razón Social | E2: Nombre Comercial | F2: Dirección | G2: Coordenadas | H2: Departamento | I2: Provincia | J2: Distrito | K2: Nombre | L2: Cargo | M2: Codigo | N2: Número | O2: Fijo | P2: Correo | Q2: OBS | R2: Tipo de Cliente | S2: Rubro | T2: Tamaño | U2: Estado | V2: Web | W2: Facebook | X2: WhatsApp | Y2: Instagram | Z2: TikTok | AA2: LinkedIn | AB2: Ultimo Seguimiento | AC2: Dias de seguimiento | AD2: Tarea
A3: 3 | B3: RUC | C3: 20605319948 | D3: JUNTA DE PROPIETARIOS DEL CONDOMINIO PASEO DEL PARQUE | E3: CONDOMINIO PASEO DEL PARQUE | F3: JR. UNIVERSO N° 291 LA CAMPIÑA | H3: Lima | I3: Lima | J3: Chorrillos | K3: ANDRES CAMARENA | L3: PROPIETARIO | M3: 51 | N3: 991578563 | O3: - | P3: - | R3: Cliente final | S3: Edificios y condominios | T3: Microempresa | U3: Primer Contacto | W3: https://www.facebook.com/p/Condominio-Paseo-del-Parque-100063931064710/?profile_tab_item_selected=mentions&_rdr | X3: https://wa.me/51991578563 | AB3: =IFERROR( _xlfn.AGGREGATE( 14, 6, (tbl_Seguimiento[Fecha de la acción]) / (tbl_Seguimiento[ID Cliente] = tbl_Clientes[[#This Row],[ID]]), 1 ), "No hay seguimientos" ) -> 45741 | AC3: =IFERROR(TODAY()-tbl_Clientes[[#This Row],[Ultimo Seguimiento]],"No hay seguimientos") -> 3 | AD3: LISTO
A4: 4 | B4: RUC | C4: 20611535369 | D4: JUNTA DE PROPIETARIOS DEL EDIFICIO START | E4: EDIFICIO START | F4: JULIAN SANDOVAL NRO. 155 INT. SSGG URB. DEL BARRIO MEDICO LIMA - LIMA - SURQUILLO | H4: Lima | I4: Lima | J4: Surquillo | K4: NATALY MORALES | L4: ADMINISTRADORA | M4: 51 | N4: 944445811 | P4: - | R4: Cliente final | S4: Edificios y condominios | T4: Microempresa | U4: Prospección | X4: https://wa.me/51944445811 | AB4: =IFERROR( _xlfn.AGGREGATE( 14, 6, (tbl_Seguimiento[Fecha de la acción]) / (tbl_Seguimiento[ID Cliente] = tbl_Clientes[[#This Row],[ID]]), 1 ), "No hay seguimientos" ) -> 45740 | AC4: =IFERROR(TODAY()-tbl_Clientes[[#This Row],[Ultimo Seguimiento]],"No hay seguimientos") -> 4 | AD4: LISTO
A5: 5 | B5: RUC | C5: 10000000001 | D5: - | E5: KAROLINE PRESIDENTA PQ 1 | F5: - | H5: Lima | I5: Lima | J5: Santiago de Surco | K5: KAROLINE | L5: PRESIDENTA | M5: 51 | N5: 984788272 | P5: - | R5: Cliente final | S5: Edificios y condominios | T5: Microempresa | U5: Prospección | X5: https://wa.me/51984788272 | AB5: =IFERROR( _xlfn.AGGREGATE( 14, 6, (tbl_Seguimiento[Fecha de la acción]) / (tbl_Seguimiento[ID Cliente] = tbl_Clientes[[#This Row],[ID]]), 1 ), "No hay seguimientos" ) -> 45742 | AC5: =IFERROR(TODAY()-tbl_Clientes[[#This Row],[Ultimo Seguimiento]],"No hay seguimientos") -> 2 | AD5: LISTO
A6: 6 | B6: RUC | C6: 10000000002 | D6: - | E6: PRESIDENTA EDIFICIO SAUCE | F6: - | H6: Lima | I6: Lima | J6: Santiago de Surco | K6: - | L6: PRESIDENTA | M6: 51 | N6: 994675075 | P6: - | R6: Cliente final | S6: Edificios y condominios | T6: Microempresa | U6: Prospección | X6: https://wa.me/51994675075 | AB6: =IFERROR( _xlfn.AGGREGATE( 14, 6, (tbl_Seguimiento[Fecha de la acción]) / (tbl_Seguimiento[ID Cliente] = tbl_Clientes[[#This Row],[ID]]), 1 ), "No hay seguimientos" ) -> 45742 | AC6: =IFERROR(TODAY()-tbl_Clientes[[#This Row],[Ultimo Seguimiento]],"No hay seguimientos") -> 2 | AD6: LISTO
A7: 7 | B7: RUC | C7: 10000000003 | D7: - | E7: DAYANA PRES. LIBERTADORES | F7: - | H7: Lima | I7: Lima | J7: Santiago de Surco | K7: DAYANA | L7: PRESIDENTA | M7: 51 | N7: 966462507 | P7: - | R7: Cliente final | S7: Edificios y condominios | T7: Microempresa | U7: Prospección | X7: https://wa.me/51966462507 | AB7: =IFERROR( _xlfn.AGGREGATE( 14, 6, (tbl_Seguimiento[Fecha de la acción]) / (tbl_Seguimiento[ID Cliente] = tbl_Clientes[[#This Row],[ID]]), 1 ), "No hay seguimientos" ) -> 45742 | AC7: =IFERROR(TODAY()-tbl_Clientes[[#This Row],[Ultimo Seguimiento]],"No hay seguimientos") -> 2 | AD7: LISTO
A8: 8 | B8: RUC | C8: 10000000004 | D8: - | E8: VIVIAN PRESIDENTA ELEKTRA | F8: - | H8: Lima | I8: Lima | J8: Santiago de Surco | K8: VIVIAN | L8: PRESIDENTA | M8: 51 | N8: 993851890 | P8: - | Q8: condominio electra | R8: Cliente final | S8: Edificios y condominios | T8: Microempresa | U8: Prospección | X8: https://wa.me/51993851890 | AB8: =IFERROR( _xlfn.AGGREGATE( 14, 6, (tbl_Seguimiento[Fecha de la acción]) / (tbl_Seguimiento[ID Cliente] = tbl_Clientes[[#This Row],[ID]]), 1 ), "No hay seguimientos" ) -> 45742 | AC8: =IFERROR(TODAY()-tbl_Clientes[[#This Row],[Ultimo Seguimiento]],"No hay seguimientos") -> 2 | AD8: LISTO
A9: 9 | B9: RUC | C9: 10000000005 | D9: - | E9: CINTHIA GUTIÉRREZ | F9: - | H9: Lima | I9: Lima | J9: Santiago de Surco | K9: Cinthia Gutiérrez | L9: PRESIDENTA | M9: 51 | N9: 987783580 | P9: - | R9: Cliente final | S9: Edificios y condominios | T9: Microempresa | U9: Prospección | X9: https://wa.me/51987783580 | AB9: =IFERROR( _xlfn.AGGREGATE( 14, 6, (tbl_Seguimiento[Fecha de la acción]) / (tbl_Seguimiento[ID Cliente] = tbl_Clientes[[#This Row],[ID]]), 1 ), "No hay seguimientos" ) -> 45743 | AC9: =IFERROR(TODAY()-tbl_Clientes[[#This Row],[Ultimo Seguimiento]],"No hay seguimientos") -> 1 | AD9: LISTO
A10: 10 | B10: RUC | C10: 10000000006 | D10: - | E10: MARIA PRESIDENTA PQ 2 | F10: - | H10: Lima | I10: Lima | J10: Santiago de Surco | K10: Maria | L10: PRESIDENTA | M10: 51 | N10: 964635678 | P10: - | R10: Cliente final | S10: Edificios y condominios | T10: Microempresa | U10: Prospección | X10: https://wa.me/51964635678 | AB10: =IFERROR( _xlfn.AGGREGATE( 14, 6, (tbl_Seguimiento[Fecha de la acción]) / (tbl_Seguimiento[ID Cliente] = tbl_Clientes[[#This Row],[ID]]), 1 ), "No hay seguimientos" ) -> 45743 | AC10: =IFERROR(TODAY()-tbl_Clientes[[#This Row],[Ultimo Seguimiento]],"No hay seguimientos") -> 1 | AD10: LISTO
A11: 11 | B11: RUC | C11: 10000000007 | D11: - | E11: RUBÍ PRESIDENTA DE PARQUE 3 | F11: - | H11: Lima | I11: Lima | J11: Santiago de Surco | K11: RUBÍ | L11: PRESIDENTA | M11: 51 | N11: 953249251 | P11: - | R11: Cliente final | S11: Edificios y condominios | T11: Microempresa | U11: Prospección | X11: https://wa.me/51953249251 | AB11: =IFERROR( _xlfn.AGGREGATE( 14, 6, (tbl_Seguimiento[Fecha de la acción]) / (tbl_Seguimiento[ID Cliente] = tbl_Clientes[[#This Row],[ID]]), 1 ), "No hay seguimientos" ) -> 45743 | AC11: =IFERROR(TODAY()-tbl_Clientes[[#This Row],[Ultimo Seguimiento]],"No hay seguimientos") -> 1 | AD11: LISTO
A12: 12 | B12: RUC | C12: 10000000008 | D12: - | E12: CONDOMINIO PARQUE CENTRAL | F12: - | H12: Lima | I12: Lima | J12: Santiago de Surco | K12: Marianella Julissa | L12: PRESIDENTA | M12: 51 | N12: 998315015 | P12: administracion@condominioparquecentral.com | Q12: OTROS CONTACTOS: Administración Club House 955 931 818 / Presidente Torre E: Miluska Silva 998 871 870 / Vocal de seguridad: José Clinton 922 016 947 | R12: Cliente final | S12: Edificios y condominios | T12: Microempresa | U12: Prospección | X12: https://wa.me/51998315015 | AB12: =IFERROR( _xlfn.AGGREGATE( 14, 6, (tbl_Seguimiento[Fecha de la acción]) / (tbl_Seguimiento[ID Cliente] = tbl_Clientes[[#This Row],[ID]]), 1 ), "No hay seguimientos" ) -> 45744 | AC12: =IFERROR(TODAY()-tbl_Clientes[[#This Row],[Ultimo Seguimiento]],"No hay seguimientos") -> 0 | AD12: LISTO
A13: 13 | B13: RUC | C13: 10000000009 | D13: - | E13: CONDOMINIO LA PORTADA DE MONTERRICO | F13: - | H13: Lima | I13: Lima | J13: Santiago de Surco | K13: Jacqueline Manrique | L13: PRESIDENTA | M13: 51 | N13: 955319977 | P13: - | R13: Cliente final | S13: Edificios y condominios | T13: Microempresa | U13: Prospección | X13: https://wa.me/51955319977 | AB13: =IFERROR( _xlfn.AGGREGATE( 14, 6, (tbl_Seguimiento[Fecha de la acción]) / (tbl_Seguimiento[ID Cliente] = tbl_Clientes[[#This Row],[ID]]), 1 ), "No hay seguimientos" ) -> No hay seguimientos | AC13: =IFERROR(TODAY()-tbl_Clientes[[#This Row],[Ultimo Seguimiento]],"No hay seguimientos") -> No hay seguimientos

Sheet SEGUIMIENTO (hidden)
A2: ID Interacción | B2: ID Cliente | C2: Fecha de la acción | D2: Tipo de acción | E2: Motivo de la acción | F2: Producto o servicio | G2: Descripción breve | H2: Responsable | I2: Resultado
A3: 1 | B3: 1 | C3: 45730 | D3: Llamada | E3: Prospección | F3: Software ERP | G3: Se presentó la empresa y los servicios | H3: ALBERTO MONTELUIS | I3: Interesado
A4: 2 | B4: 3 | C4: 18/03/2025 | D4: WhatsApp | E4: Seguimiento | F4: Control de condominios | H4: ALBERTO MONTELUIS | I4: Interesado
A5: 3 | B5: 3 | C5: 25/03/2025 | D5: Visita | E5: Presentación de servicio | F5: Control de condominios | G5: NO ASISTIMOS POR RECOMENDACION DE ELBER | H5: ALBERTO MONTELUIS | I5: No es el tomador de decisiones
A6: 4 | B6: 4 | C6: 24/03/2025 | D6: WhatsApp | E6: Seguimiento | F6: Control de condominios | H6: ALBERTO MONTELUIS | I6: Interesado
A7: 5 | B7: 5 | C7: 26/03/2025 | D7: WhatsApp | E7: Prospección | F7: - | G7: enviamos un mensaje de presentacion, y broshure tambien una imagen de contactos | H7: ALBERTO MONTELUIS | I7: Pendiente de respuesta
A8: 6 | B8: 6 | C8: 26/03/2025 | D8: WhatsApp | E8: Prospección | F8: - | G8: enviamos un mensaje de presentacion, y broshure tambien una imagen de contactos | H8: ALBERTO MONTELUIS | I8: Pendiente de respuesta
A9: 7 | B9: 7 | C9: 26/03/2025 | D9: WhatsApp | E9: Prospección | F9: - | G9: enviamos un mensaje de presentacion, y broshure tambien una imagen de contactos | H9: ALBERTO MONTELUIS | I9: Pendiente de respuesta
A10: 8 | B10: 8 | C10: 26/03/2025 | D10: WhatsApp | E10: Prospección | F10: - | G10: enviamos un mensaje de presentacion, y broshure tambien una imagen de contactos | H10: ALBERTO MONTELUIS | I10: Pendiente de respuesta
A11: 9 | B11: 12 | C11: 27/03/2025 | D11: WhatsApp | E11: Prospección | F11: SERVICIOS | G11: Marianella Ricaldi nos compartiolos contactos de la nueva junta de propietarios | H11: ALBERTO MONTELUIS | I11: Solicita más información
A12: 10 | B12: 12 | C12: 27/03/2025 | D12: WhatsApp | E12: Seguimiento | F12: Administración | G12: Envie información a todos los contactos, pero solo contesto Jose Clinton: Vocal de Seguridad | H12: ALBERTO MONTELUIS | I12: Interesado
A13: 11 | B13: 9 | C13: 27/03/2025 | D13: WhatsApp | E13: Prospección | F13: Administración | H13: ALBERTO MONTELUIS | I13: Pendiente de respuesta
A14: 12 | B14: 10 | C14: 27/03/2025 | D14: WhatsApp | E14: Prospección | F14: Administración | H14: ALBERTO MONTELUIS | I14: Pendiente de respuesta
A15: 13 | B15: 11 | C15: 27/03/2025 | D15: WhatsApp | E15: Prospección | F15: Administración | H15: ALBERTO MONTELUIS | I15: Pendiente de respuesta
A16: 14 | B16: 12 | C16: 28/03/2025 | D16: WhatsApp | E16: Seguimiento | F16: Administracion de Condominios | G16: La presidenta Miluska nos pidio información , se recomienda hacer seguimiento en 2 dias | H16: ALBERTO MONTELUIS | I16: Interesado

Sheet Parámetros (hidden)
A1: Contraseña: | B1: 2025 | C1: Ingreso rapido: | D1: 2025
A3: RUC: | B3: 20613967762
A4: Razón Social: | B4: PATRULLA 105 SEGURITY S.A.C.
A5: Dirección: | B5: URB. LAS PALMAS PACHACAMAC
A7: Rubro | C7: Estado | E7: Acciones | G7: Motivos de la Acción | I7: Resultados | K7: Responsable
A8: Edificios y condominios | C8: Prospección | E8: Llamada | G8: Prospección | I8: Interesado | K8: ALBERTO MONTELUIS
A9: Alimentación y Bebidas | C9: Primer Contacto | E9: Email | G9: Requerimiento de información | I9: No interesado | K9: MARYORY ATALAYA
A10: Comercio | C10: Cliente Interesado | E10: WhatsApp | G10: Seguimiento | I10: Solicita más información
A11: Construcción | C11: Cliente Potencial | E11: Videollamada | G11: Presentación de producto | I11: Pendiente de respuesta
A12: Educación | C12: Evaluación | E12: Visita | G12: Presentación de servicio | I12: Cita agendada
A13: Energía | C13: Propuesta | E13: Reunión | G13: Recordatorio | I13: Venta cerrada
A14: Finanzas y Banca | C14: Negociación | E14: Cotización Enviada | G14: Soporte/Incidencia | I14: Cotización enviada
A15: Logística y Transporte | C15: Cierre de Venta | E15: Cierre de Venta | G15: Queja/Reclamo | I15: Requiere seguimiento
A16: Manufactura | C16: Eliminado | E16: Soporte / Consulta | G16: Renovación/Actualización | I16: No es el tomador de decisiones
A17: Marketing y Publicidad | E17: Capacitación | G17: Fidelización
A18: Restaurante | E18: Demostración | G18: Encuesta de satisfacción
A19: Salud | E19: Encuesta de Satisfacción | G19: Otro
A20: Servicios Profesionales | E20: Otro
A21: Tecnología
A22: Telecomunicaciones
A23: Turismo y Hospitalidad

Sheet DATOS_GENERALES (hidden)
A1: Cliente | B1: BENIGNO ALBERTO MONTELUIS ASPAJO | E1: Accesos | G1: Cliente ID: | H1: =MAX(tbl_Clientes[ID])+1 -> 14
A2: DNI/RUC | B2: 75244009 | E2: MONTELUIS2025 | G2: Seguimiento ID: | H2: =MAX(tbl_Seguimiento[ID Interacción])+1 -> 15
A3: Nombre Corto | B3: ALBERTO MONTELUIS | E3: =Parámetros!B1 -> 2025 | G3: Cotización: | H3: =MAX(tbl_Cotizaciones[ID_Cotización])+1 -> 582
A4: N° Comprobante | B4: FC-7000 | G4: Producto | H4: =MAX(tbl_Productos[ID_Artículo])+1 -> 13
A5: Fecha de venta: | B5: 45627 | E5: Dias de Licencia | F5: Licencia:
A6: ="Doc: "&B4 -> Doc: FC-7000 | E6: 90 | F6: ="MS"&TEXT(MOD(((TODAY() + YEAR(TODAY())*MONTH(TODAY())*DAY(TODAY()))*1234567+98765),10000000000),"0000000000") -> MS6473978313
A7: Ultima Modificación | B7: 45720
E8: Dias Habilitados
B9: Dias | E9: =E6-B11 -> 66
A10: Tiempo de venta | B10: =TODAY()-B5 -> 117 | C10: =CONCATENATE(DATEDIF(DATE(2024,1,1), DATE(2024,1,1)+B10-1, "M"), " meses y ", DATE(2024,1,1)+B10-1 - DATE(YEAR(DATE(2024,1,1)+B10-1), MONTH(DATE(2024,1,1)+B10-1), 1), " días") -> 3 meses y 25 días
A11: Tiempo de ultima modificación | B11: =TODAY()-B7 -> 24 | C11: =CONCATENATE(DATEDIF(DATE(2024,1,1), DATE(2024,1,1)+B11-1, "M"), " meses y ", DATE(2024,1,1)+B11-1 - DATE(YEAR(DATE(2024,1,1)+B11-1), MONTH(DATE(2024,1,1)+B11-1), 1), " días") -> 0 meses y 23 días
A13: id | B13: Inicio | C13: Final | E13: =INDEX(Saludos[],MATCH(RANDBETWEEN(1,15),Saludos[id],0),2)&" "&B3&" "&INDEX(Saludos[],MATCH(RANDBETWEEN(1,15),Saludos[id],0),3) -> ¡Aquí estamos otra vez, ALBERTO MONTELUIS ! Hoy es un buen día para tomar el control de tu dinero.
A14: 1 | B14: ¡Hola de nuevo, | C14: ! Estoy listo/a para ayudarte con tus finanzas.
A15: 2 | B15: ¡Qué gusto verte, | C15: ! Vamos a hacer que cada peso cuente.
A16: 3 | B16: ¡Bienvenido/a de vuelta, | C16: ! Sigamos avanzando en tu camino financiero.
A17: 4 | B17: ¡Un placer recibirte, | C17: ! Hoy es un buen día para tomar el control de tu dinero.
A18: 5 | B18: ¡Aquí estamos otra vez, | C18: ! Vamos a revisar tus ingresos y gastos.
A19: 6 | B19: ¡Saludos cordiales, | C19: ! Recuerda que el control financiero es clave para el éxito.
A20: 7 | B20: ¡Hey, | C20: ! ¿Qué te gustaría analizar hoy?
A21: 8 | B21: ¡Es un gran día para ti, | C21: ! Siempre es buen momento para mejorar tus finanzas.
A22: 9 | B22: ¡Qué alegría verte por aquí, | C22: ! Juntos lograremos que tu dinero trabaje para ti.
A23: 10 | B23: ¡Vamos a por ello, | C23: ! Un poco de organización y lograrás grandes cambios.
A24: 11 | B24: ¡Manos a la obra, | C24: ! Estoy aquí para hacerte la vida más fácil.
A25: 12 | B25: ¡Preparado/a para optimizar tus finanzas, | C25: ! Vamos a darle seguimiento a tu progreso financiero.
A26: 13 | B26: ¡Tu asistente financiero dice hola, | C26: ! La constancia es la clave del éxito financiero.
A27: 14 | B27: ¡Aquí listo/a para ayudarte, | C27: ! Un pequeño ajuste puede hacer una gran diferencia.
A28: 15 | B28: ¡De vuelta al control financiero, | C28: ! Vamos a asegurarnos de que cada gasto valga la pena.

Sheet UBICACIONES (hidden)
A2: Departamento | B2: Provincia | C2: Distrito | D2: Ubicación Geográfica
A3: Lima | B3: Lima | C3: Lima | D3: Centro
A4: Lima | B4: Lima | C4: Ancón | D4: Centro
A5: Lima | B5: Lima | C5: Ate | D5: Centro
A6: Lima | B6: Lima | C6: Barranco | D6: Centro
A7: Lima | B7: Lima | C7: Breña | D7: Centro
A8: Lima | B8: Lima | C8: Carabayllo | D8: Centro
A9: Lima | B9: Lima | C9: Chaclacayo | D9: Centro
A10: Lima | B10: Lima | C10: Chorrillos | D10: Centro
A11: Lima | B11: Lima | C11: Cieneguilla | D11: Centro
A12: Lima | B12: Lima | C12: Comas | D12: Centro
A13: Lima | B13: Lima | C13: El Agustino | D13: Centro
A14: Lima | B14: Lima | C14: Independencia | D14: Centro
A15: Lima | B15: Lima | C15: Jesús María | D15: Centro
A16: Lima | B16: Lima | C16: La Molina | D16: Centro
A17: Lima | B17: Lima | C17: La Victoria | D17: Centro
A18: Lima | B18: Lima | C18: Lince | D18: Centro
A19: Lima | B19: Lima | C19: Los Olivos | D19: Centro
A20: Lima | B20: Lima | C20: Lurigancho | D20: Centro
A21: Lima | B21: Lima | C21: Lurín | D21: Centro
A22: Lima | B22: Lima | C22: Magdalena del Mar | D22: Centro
A23: Lima | B23: Lima | C23: Pueblo Libre | D23: Centro
A24: Lima | B24: Lima | C24: Miraflores | D24: Centro
A25: Lima | B25: Lima | C25: Pachacámac | D25: Centro
A26: Lima | B26: Lima | C26: Pucusana | D26: Centro
A27: Lima | B27: Lima | C27: Puente Piedra | D27: Centro
A28: Lima | B28: Lima | C28: Punta Hermosa | D28: Centro
A29: Lima | B29: Lima | C29: Punta Negra | D29: Centro
A30: Lima | B30: Lima | C30: Rímac | D30: Centro
A31: Lima | B31: Lima | C31: San Bartolo | D31: Centro
A32: Lima | B32: Lima | C32: San Borja | D32: Centro
A33: Lima | B33: Lima | C33: San Isidro | D33: Centro
A34: Lima | B34: Lima | C34: San Juan de Lurigancho | D34: Centro
A35: Lima | B35: Lima | C35: San Juan de Miraflores | D35: Centro
A36: Lima | B36: Lima | C36: San Luis | D36: Centro
A37: Lima | B37: Lima | C37: San Martín de Porres | D37: Centro
A38: Lima | B38: Lima | C38: San Miguel | D38: Centro
A39: Lima | B39: Lima | C39: Santa Anita | D39: Centro
A40: Lima | B40: Lima | C40: Santa María del Mar | D40: Centro
A41: Lima | B41: Lima | C41: Santa Rosa | D41: Centro
A42: Lima | B42: Lima | C42: Santiago de Surco | D42: Centro
A43: Lima | B43: Lima | C43: Surquillo | D43: Centro
A44: Lima | B44: Lima | C44: Villa El Salvador | D44: Centro
A45: Lima | B45: Lima | C45: Villa María del Triunfo | D45: Centro
A46: Callao | B46: Callao | C46: Callao | D46: Centro
A47: Callao | B47: Callao | C47: Bellavista | D47: Centro
A48: Callao | B48: Callao | C48: Carmen de la Legua Reynoso | D48: Centro
A49: Callao | B49: Callao | C49: La Perla | D49: Centro
A50: Callao | B50: Callao | C50: La Punta | D50: Centro
A51: Callao | B51: Callao | C51: Ventanilla | D51: Centro
A52: Callao | B52: Callao | C52: Mi Perú | D52: Centro

Sheet Interfaz (hidden)
